[Event "*** SCC Grand Prix: Titled Tuesday Blitz"]
[Site "Chess.com"]
[Date "2020.06.09"]
[Round "9"]
[White "SoltaniciR"]
[Black "Danesz22"]
[Result "1-0"]
[WhiteElo "2500"]
[BlackElo "2366"]
[TimeControl "180+1"]
[EndTime "10:47:29 PDT"]
[Termination "SoltaniciR won on time"]

1. e4 {[%clk 0:03:00.9]} 1... e5 {[%clk 0:02:55.1]} 2. Nf3 {[%clk 0:03:00.5]}
2... Nc6 {[%clk 0:02:55.1]} 3. Bb5 {[%clk 0:03:00.3]} 3... a6 {[%clk 0:02:55.4]}
4. Ba4 {[%clk 0:03:00.3]} 4... Nf6 {[%clk 0:02:55.5]} 5. O-O {[%clk 0:03:00.2]}
5... Be7 {[%clk 0:02:55.7]} 6. d3 {[%clk 0:02:58.8]} 6... d6 {[%clk 0:02:52.2]}
7. c3 {[%clk 0:02:55.1]} 7... O-O {[%clk 0:02:50.5]} 8. Re1 {[%clk 0:02:54.9]}
8... b5 {[%clk 0:02:48.6]} 9. Bb3 {[%clk 0:02:51.3]} 9... Re8 {[%clk 0:02:44.9]}
10. Nbd2 {[%clk 0:02:49.5]} 10... Bb7 {[%clk 0:02:43]} 11. Nf1 {[%clk
0:02:47.9]} 11... Bf8 {[%clk 0:02:43.2]} 12. Ng3 {[%clk 0:02:29]} 12... Na5
{[%clk 0:02:42.5]} 13. Bc2 {[%clk 0:02:27.8]} 13... c5 {[%clk 0:02:07.4]} 14. a3
{[%clk 0:01:46.3]} 14... Nc6 {[%clk 0:02:03.7]} 15. Bg5 {[%clk 0:01:45.7]} 15...
h6 {[%clk 0:02:01.3]} 16. Bxf6 {[%clk 0:01:45.8]} 16... Qxf6 {[%clk 0:02:01.3]}
17. Bb3 {[%clk 0:01:46.2]} 17... Ne7 {[%clk 0:01:51.6]} 18. Nf1 {[%clk
0:01:45.2]} 18... Ng6 {[%clk 0:01:50.5]} 19. Ne3 {[%clk 0:01:44.9]} 19... Nf4
{[%clk 0:01:41.4]} 20. a4 {[%clk 0:01:25.8]} 20... c4 {[%clk 0:01:36.7]} 21. Bc2
{[%clk 0:01:09.1]} 21... cxd3 {[%clk 0:01:28.1]} 22. Bxd3 {[%clk 0:01:08.9]}
22... Qg6 {[%clk 0:01:18.8]} 23. Nh4 {[%clk 0:00:58.7]} 23... Qg5 {[%clk
0:01:09.4]} 24. Nf3 {[%clk 0:00:57.5]} 24... Qg6 {[%clk 0:01:02.4]} 25. Nh4
{[%clk 0:00:56.9]} 25... Qg5 {[%clk 0:00:39]} 26. Nf3 {[%clk 0:00:45.3]} 26...
Qh5 {[%clk 0:00:38.8]} 27. Nf5 {[%clk 0:00:41.5]} 27... g6 {[%clk 0:00:33.7]}
28. Ng3 {[%clk 0:00:41.2]} 28... Qg4 {[%clk 0:00:33.3]} 29. axb5 {[%clk
0:00:35.3]} 29... axb5 {[%clk 0:00:33.1]} 30. Rxa8 {[%clk 0:00:33.6]} 30... Rxa8
{[%clk 0:00:32.7]} 31. Bxb5 {[%clk 0:00:34]} 31... h5 {[%clk 0:00:26.8]} 32. h3
{[%clk 0:00:32.4]} 32... Qc8 {[%clk 0:00:22.2]} 33. Bf1 {[%clk 0:00:25.7]} 33...
Qc5 {[%clk 0:00:21.2]} 34. Ne2 {[%clk 0:00:23.2]} 34... Bh6 {[%clk 0:00:15]} 35.
Nxf4 {[%clk 0:00:21.8]} 35... Bxf4 {[%clk 0:00:15.9]} 36. Qb3 {[%clk 0:00:15.4]}
36... Bc6 {[%clk 0:00:12.2]} 37. Qc4 {[%clk 0:00:15]} 37... Kg7 {[%clk
0:00:06.6]} 38. Qxc5 {[%clk 0:00:14.5]} 38... dxc5 {[%clk 0:00:07.5]} 39. Bc4
{[%clk 0:00:13.8]} 39... Rb8 {[%clk 0:00:07.7]} 40. b3 {[%clk 0:00:13.5]} 40...
f5 {[%clk 0:00:06.7]} 41. exf5 {[%clk 0:00:12.1]} 41... Bxf3 {[%clk 0:00:07.2]}
42. gxf3 {[%clk 0:00:08.4]} 42... gxf5 {[%clk 0:00:07.5]} 43. Rd1 {[%clk
0:00:08.6]} 43... e4 {[%clk 0:00:04.8]} 44. fxe4 {[%clk 0:00:08]} 44... fxe4
{[%clk 0:00:05.7]} 45. Rd5 {[%clk 0:00:08.2]} 45... Kf6 {[%clk 0:00:03.4]} 46.
Rxh5 {[%clk 0:00:05.9]} 46... Bd2 {[%clk 0:00:03.9]} 47. Kf1 {[%clk 0:00:05.1]}
47... Bxc3 {[%clk 0:00:03.6]} 48. Rxc5 {[%clk 0:00:05.7]} 48... Bd4 {[%clk
0:00:03.8]} 49. Rc6+ {[%clk 0:00:06]} 49... Kg5 {[%clk 0:00:03.6]} 50. Rd6
{[%clk 0:00:04.5]} 50... Bc3 {[%clk 0:00:02.2]} 51. Rd5+ {[%clk 0:00:04.4]}
51... Kf4 {[%clk 0:00:02.7]} 52. Rh5 {[%clk 0:00:03.5]} 52... Ra8 {[%clk
0:00:02]} 53. Kg2 {[%clk 0:00:03]} 1-0

[Event "*** SCC Grand Prix: Titled Tuesday Blitz"]
[Site "Chess.com"]
[Date "2020.06.09"]
[Round "9"]
[White "stanyga"]
[Black "Enriquack"]
[Result "1/2-1/2"]
[WhiteElo "2634"]
[BlackElo "2417"]
[TimeControl "180+1"]
[EndTime "10:47:30 PDT"]
[Termination "Game drawn - insufficient material"]

1. d4 {[%clk 0:02:59.6]} 1... Nf6 {[%clk 0:03:00]} 2. c4 {[%clk 0:02:59.5]} 2...
g6 {[%clk 0:03:00]} 3. g3 {[%clk 0:02:59.6]} 3... c5 {[%clk 0:02:58.6]} 4. Bg2
{[%clk 0:03:00.5]} 4... Bg7 {[%clk 0:02:58.3]} 5. d5 {[%clk 0:02:54.8]} 5... O-O
{[%clk 0:02:57.7]} 6. Nc3 {[%clk 0:02:53]} 6... d6 {[%clk 0:02:51.1]} 7. e4
{[%clk 0:02:52.2]} 7... a6 {[%clk 0:02:51.3]} 8. Nge2 {[%clk 0:02:50.1]} 8... b5
{[%clk 0:02:50.9]} 9. cxb5 {[%clk 0:02:49.9]} 9... axb5 {[%clk 0:02:44.7]} 10.
Nxb5 {[%clk 0:02:49.3]} 10... Ba6 {[%clk 0:02:37.2]} 11. Nbc3 {[%clk 0:02:38.3]}
11... Ng4 {[%clk 0:02:31.5]} 12. O-O {[%clk 0:02:36]} 12... Nd7 {[%clk
0:02:30.4]} 13. Qc2 {[%clk 0:02:34.3]} 13... Nge5 {[%clk 0:02:15.7]} 14. Rd1
{[%clk 0:02:33.6]} 14... c4 {[%clk 0:02:08]} 15. Be3 {[%clk 0:02:20.5]} 15...
Qc7 {[%clk 0:02:02.1]} 16. b4 {[%clk 0:01:57.7]} 16... cxb3 {[%clk 0:01:56.4]}
17. Qxb3 {[%clk 0:01:50.5]} 17... Rfb8 {[%clk 0:01:46.1]} 18. Qc2 {[%clk
0:01:45.8]} 18... Bxe2 {[%clk 0:01:46]} 19. Qxe2 {[%clk 0:01:45.5]} 19... Qxc3
{[%clk 0:01:46.1]} 20. Bd4 {[%clk 0:01:44.3]} 20... Qa3 {[%clk 0:01:41.9]} 21.
f4 {[%clk 0:01:43.2]} 21... Nf3+ {[%clk 0:01:10.4]} 22. Bxf3 {[%clk 0:01:14.2]}
22... Bxd4+ {[%clk 0:01:07.4]} 23. Rxd4 {[%clk 0:01:13.7]} 23... Qc5 {[%clk
0:01:05.7]} 24. Rd1 {[%clk 0:01:00.2]} 24... Rb4 {[%clk 0:00:58.2]} 25. Qf2
{[%clk 0:00:59.7]} 25... Rxa2 {[%clk 0:00:52.6]} 26. Qxa2 {[%clk 0:00:57.8]}
26... Rxd4 {[%clk 0:00:52.9]} 27. Qa8+ {[%clk 0:00:48.6]} 27... Nf8 {[%clk
0:00:51.7]} 28. Rxd4 {[%clk 0:00:47.6]} 28... Qxd4+ {[%clk 0:00:52]} 29. Kg2
{[%clk 0:00:47.2]} 29... Qd2+ {[%clk 0:00:51.3]} 30. Kg1 {[%clk 0:00:46.2]}
30... h5 {[%clk 0:00:44.1]} 31. Qe8 {[%clk 0:00:43.8]} 31... h4 {[%clk 0:00:27]}
32. Qxe7 {[%clk 0:00:15.8]} 32... Qe3+ {[%clk 0:00:27.1]} 33. Kg2 {[%clk
0:00:15.9]} 33... h3+ {[%clk 0:00:27.3]} 34. Kxh3 {[%clk 0:00:16.3]} 34... Qxf3
{[%clk 0:00:28]} 35. Qxd6 {[%clk 0:00:16.4]} 35... Qxe4 {[%clk 0:00:27.9]} 36.
Qe5 {[%clk 0:00:15.9]} 36... Qxe5 {[%clk 0:00:21.9]} 37. fxe5 {[%clk 0:00:15.8]}
37... Nd7 {[%clk 0:00:22.1]} 38. e6 {[%clk 0:00:16]} 38... fxe6 {[%clk
0:00:22.1]} 39. dxe6 {[%clk 0:00:16.3]} 39... Nc5 {[%clk 0:00:21.2]} 40. e7
{[%clk 0:00:12.3]} 40... Kf7 {[%clk 0:00:21.5]} 41. Kg4 {[%clk 0:00:12.7]} 41...
Kxe7 {[%clk 0:00:21.5]} 42. Kg5 {[%clk 0:00:13]} 42... Kf7 {[%clk 0:00:21.2]}
43. h4 {[%clk 0:00:13.2]} 43... Ne6+ {[%clk 0:00:21.6]} 44. Kh6 {[%clk
0:00:13.4]} 44... Kf6 {[%clk 0:00:21.5]} 45. g4 {[%clk 0:00:13.8]} 45... Nf4
{[%clk 0:00:18.6]} 46. Kh7 {[%clk 0:00:10.1]} 46... Ng2 {[%clk 0:00:15.5]} 47.
g5+ {[%clk 0:00:04.6]} 47... Kf5 {[%clk 0:00:14.9]} 48. h5 {[%clk 0:00:05.1]}
48... Nf4 {[%clk 0:00:03.4]} 49. hxg6 {[%clk 0:00:03.2]} 49... Nxg6 {[%clk
0:00:04.3]} 50. Kh6 {[%clk 0:00:01.7]} 50... Ne5 {[%clk 0:00:03.7]} 51. Kh5
{[%clk 0:00:02]} 51... Nf7 {[%clk 0:00:03.6]} 52. g6 {[%clk 0:00:02.5]} 52...
Kf6 {[%clk 0:00:04]} 53. gxf7 {[%clk 0:00:02.5]} 53... Kxf7 {[%clk 0:00:04.4]}
1/2-1/2

[Event "*** SCC Grand Prix: Titled Tuesday Blitz"]
[Site "Chess.com"]
[Date "2020.06.09"]
[Round "9"]
[White "praveenb2002"]
[Black "Reader777"]
[Result "1/2-1/2"]
[WhiteElo "2765"]
[BlackElo "2620"]
[TimeControl "180+1"]
[EndTime "10:47:31 PDT"]
[Termination "Game drawn by repetition"]

1. e4 {[%clk 0:03:00.9]} 1... c5 {[%clk 0:02:59.8]} 2. Nf3 {[%clk 0:03:00.6]}
2... d6 {[%clk 0:03:00.3]} 3. d4 {[%clk 0:03:00.1]} 3... cxd4 {[%clk 0:03:00.4]}
4. Nxd4 {[%clk 0:03:01]} 4... Nf6 {[%clk 0:03:00.3]} 5. Nc3 {[%clk 0:03:01.4]}
5... e6 {[%clk 0:03:00.8]} 6. g4 {[%clk 0:02:58.8]} 6... h6 {[%clk 0:03:00.8]}
7. h4 {[%clk 0:02:57.3]} 7... e5 {[%clk 0:03:00.6]} 8. Bb5+ {[%clk 0:02:55.5]}
8... Nbd7 {[%clk 0:03:00.2]} 9. Nf5 {[%clk 0:02:55.4]} 9... a6 {[%clk
0:02:59.5]} 10. Ba4 {[%clk 0:02:32.6]} 10... b5 {[%clk 0:02:57]} 11. Bb3 {[%clk
0:02:32.9]} 11... Nc5 {[%clk 0:02:52.1]} 12. f3 {[%clk 0:02:24.4]} 12... Nxb3
{[%clk 0:02:31.9]} 13. axb3 {[%clk 0:02:25.3]} 13... Bb7 {[%clk 0:02:21.1]} 14.
g5 {[%clk 0:02:19.5]} 14... hxg5 {[%clk 0:02:16.6]} 15. Bxg5 {[%clk 0:02:20.4]}
15... g6 {[%clk 0:02:12.2]} 16. Ne3 {[%clk 0:02:17.7]} 16... Be7 {[%clk
0:02:11.4]} 17. Qd3 {[%clk 0:02:07]} 17... b4 {[%clk 0:01:57.7]} 18. Bxf6 {[%clk
0:01:37.1]} 18... Bxf6 {[%clk 0:01:56.7]} 19. Ncd5 {[%clk 0:01:36]} 19... Rxh4
{[%clk 0:01:45.4]} 20. O-O-O {[%clk 0:01:29.2]} 20... Rxh1 {[%clk 0:01:27.7]}
21. Rxh1 {[%clk 0:01:30.1]} 21... Kf8 {[%clk 0:01:26.3]} 22. Nc4 {[%clk
0:01:18.6]} 22... Kg7 {[%clk 0:01:20.8]} 23. Kb1 {[%clk 0:00:57.3]} 23... a5
{[%clk 0:01:07.9]} 24. Ncb6 {[%clk 0:00:40]} 24... Ra6 {[%clk 0:00:59.4]} 25.
Qe3 {[%clk 0:00:23.4]} 25... Bg5 {[%clk 0:00:54.6]} 26. Qf2 {[%clk 0:00:23.6]}
26... Bxd5 {[%clk 0:00:39.4]} 27. Nxd5 {[%clk 0:00:24.5]} 27... Bh6 {[%clk
0:00:33.1]} 28. Qh2 {[%clk 0:00:18.8]} 28... Qg5 {[%clk 0:00:33]} 29. Nc7 {[%clk
0:00:19.2]} 29... Rc6 {[%clk 0:00:27.7]} 30. Ne8+ {[%clk 0:00:19.3]} 30... Kf8
{[%clk 0:00:26.1]} 31. Nf6 {[%clk 0:00:16]} 31... Qxf6 {[%clk 0:00:24.5]} 32.
Qxh6+ {[%clk 0:00:16.1]} 32... Ke7 {[%clk 0:00:24.3]} 33. Qe3 {[%clk 0:00:14.4]}
33... Rc5 {[%clk 0:00:23.8]} 34. Rd1 {[%clk 0:00:13.4]} 34... Qe6 {[%clk
0:00:20.1]} 35. Qd3 {[%clk 0:00:13.1]} 35... Rc8 {[%clk 0:00:16.2]} 36. Qa6
{[%clk 0:00:12.6]} 36... Rc5 {[%clk 0:00:15.4]} 37. Qa7+ {[%clk 0:00:12.6]}
37... Qd7 {[%clk 0:00:15.3]} 38. Qa6 {[%clk 0:00:11.4]} 38... Qc6 {[%clk
0:00:14.4]} 39. Qd3 {[%clk 0:00:11.6]} 39... Ke6 {[%clk 0:00:11.4]} 40. Rd2
{[%clk 0:00:10.2]} 40... d5 {[%clk 0:00:10.9]} 41. exd5+ {[%clk 0:00:08.3]}
41... Rxd5 {[%clk 0:00:11.8]} 42. Qe4 {[%clk 0:00:08.9]} 42... Qd6 {[%clk
0:00:08.5]} 43. Qc4 {[%clk 0:00:09]} 43... Qc5 {[%clk 0:00:05.6]} 44. Qa6+
{[%clk 0:00:06.8]} 44... Rd6 {[%clk 0:00:05.8]} 45. Rxd6+ {[%clk 0:00:05.3]}
45... Qxd6 {[%clk 0:00:06.7]} 46. Qxa5 {[%clk 0:00:05.9]} 46... Qd1+ {[%clk
0:00:07.2]} 47. Ka2 {[%clk 0:00:06.3]} 47... Qxc2 {[%clk 0:00:07.8]} 48. Qxb4
{[%clk 0:00:06.1]} 48... f5 {[%clk 0:00:07.1]} 49. Qb6+ {[%clk 0:00:05.1]} 49...
Kf7 {[%clk 0:00:06.5]} 50. Qb7+ {[%clk 0:00:05.4]} 50... Kf6 {[%clk 0:00:06.7]}
51. Qb6+ {[%clk 0:00:05.6]} 51... Kg5 {[%clk 0:00:06.8]} 52. Qe6 {[%clk
0:00:05.3]} 52... Qc5 {[%clk 0:00:05.3]} 53. Kb1 {[%clk 0:00:04]} 53... Qg1+
{[%clk 0:00:05]} 54. Ka2 {[%clk 0:00:03.9]} 54... Qa7+ {[%clk 0:00:04.8]} 55.
Kb1 {[%clk 0:00:04.4]} 55... Qg1+ {[%clk 0:00:04.9]} 56. Ka2 {[%clk 0:00:03.2]}
56... Qa7+ {[%clk 0:00:04.6]} 57. Kb1 {[%clk 0:00:03.6]} 57... Qg1+ {[%clk
0:00:05.1]} 1/2-1/2

[Event "*** SCC Grand Prix: Titled Tuesday Blitz"]
[Site "Chess.com"]
[Date "2020.06.09"]
[Round "9"]
[White "GM_LOADING"]
[Black "Meri-Arabidze"]
[Result "1-0"]
[WhiteElo "2515"]
[BlackElo "2640"]
[TimeControl "180+1"]
[EndTime "10:47:34 PDT"]
[Termination "GM_LOADING won on time"]

1. e4 {[%clk 0:03:00.9]} 1... c5 {[%clk 0:02:59.4]} 2. Nf3 {[%clk 0:03:01.1]}
2... e6 {[%clk 0:02:58.2]} 3. d4 {[%clk 0:03:01.6]} 3... cxd4 {[%clk 0:02:58]}
4. Nxd4 {[%clk 0:03:02.5]} 4... Nc6 {[%clk 0:02:57.8]} 5. Nc3 {[%clk 0:03:02.5]}
5... a6 {[%clk 0:02:58.1]} 6. Nxc6 {[%clk 0:03:01.6]} 6... bxc6 {[%clk 0:02:59]}
7. Bd3 {[%clk 0:03:02]} 7... d5 {[%clk 0:02:59.5]} 8. Qf3 {[%clk 0:03:01.1]}
8... Nf6 {[%clk 0:02:59.3]} 9. O-O {[%clk 0:02:53]} 9... Be7 {[%clk 0:02:57.1]}
10. Qg3 {[%clk 0:02:52.9]} 10... O-O {[%clk 0:02:56.6]} 11. Bh6 {[%clk
0:02:52.4]} 11... Ne8 {[%clk 0:02:56.5]} 12. Bd2 {[%clk 0:02:35.8]} 12... Bh4
{[%clk 0:02:50.9]} 13. Qf3 {[%clk 0:02:31.7]} 13... Bg5 {[%clk 0:02:50.7]} 14.
Rad1 {[%clk 0:02:26.5]} 14... Bxd2 {[%clk 0:02:50]} 15. Rxd2 {[%clk 0:02:27.4]}
15... Rb8 {[%clk 0:02:50.5]} 16. b3 {[%clk 0:02:24.6]} 16... Qf6 {[%clk
0:02:48.6]} 17. Qxf6 {[%clk 0:02:14]} 17... Nxf6 {[%clk 0:02:49.5]} 18. Rfd1
{[%clk 0:02:12.5]} 18... Rb4 {[%clk 0:02:44.3]} 19. a3 {[%clk 0:02:03.8]} 19...
Rb8 {[%clk 0:02:43.8]} 20. Na4 {[%clk 0:01:59.8]} 20... Nd7 {[%clk 0:02:31]} 21.
Be2 {[%clk 0:01:19.5]} 21... a5 {[%clk 0:02:26.1]} 22. h3 {[%clk 0:01:03.8]}
22... h6 {[%clk 0:02:24.8]} 23. Re1 {[%clk 0:00:57.1]} 23... Nf6 {[%clk
0:02:22.2]} 24. Nc5 {[%clk 0:00:49.8]} 24... Nd7 {[%clk 0:02:22.2]} 25. Na4
{[%clk 0:00:48.3]} 25... g5 {[%clk 0:02:13.2]} 26. Bd1 {[%clk 0:00:47.3]} 26...
Kg7 {[%clk 0:02:12.5]} 27. Re3 {[%clk 0:00:40.4]} 27... Nb6 {[%clk 0:02:01.1]}
28. Nc5 {[%clk 0:00:37.8]} 28... a4 {[%clk 0:01:49.3]} 29. Rc3 {[%clk
0:00:33.3]} 29... axb3 {[%clk 0:01:42.1]} 30. cxb3 {[%clk 0:00:34.2]} 30... Nd7
{[%clk 0:01:34.5]} 31. b4 {[%clk 0:00:27.5]} 31... Ne5 {[%clk 0:01:29.1]} 32.
Be2 {[%clk 0:00:23.8]} 32... Ra8 {[%clk 0:01:28.8]} 33. g3 {[%clk 0:00:21.8]}
33... f5 {[%clk 0:01:21.7]} 34. exf5 {[%clk 0:00:18.9]} 34... exf5 {[%clk
0:01:19.4]} 35. f4 {[%clk 0:00:18.9]} 35... Ng6 {[%clk 0:01:17.1]} 36. Bh5
{[%clk 0:00:16.4]} 36... Re8 {[%clk 0:01:09.6]} 37. Bxg6 {[%clk 0:00:13.4]}
37... Kxg6 {[%clk 0:01:09.2]} 38. Nd3 {[%clk 0:00:14.1]} 38... Re6 {[%clk
0:00:47.2]} 39. Ne5+ {[%clk 0:00:13.2]} 39... Kg7 {[%clk 0:00:47.4]} 40. Nxc6
{[%clk 0:00:12.7]} 40... Bb7 {[%clk 0:00:31.1]} 41. Ne5 {[%clk 0:00:09.6]} 41...
Re7 {[%clk 0:00:24]} 42. Kf2 {[%clk 0:00:10.1]} 42... Rd8 {[%clk 0:00:21.3]} 43.
Rd4 {[%clk 0:00:09.8]} 43... h5 {[%clk 0:00:19.9]} 44. h4 {[%clk 0:00:09.6]}
44... gxh4 {[%clk 0:00:19.3]} 45. gxh4 {[%clk 0:00:10.5]} 45... Kh7 {[%clk
0:00:18.6]} 46. a4 {[%clk 0:00:10.7]} 46... Rg8 {[%clk 0:00:18.7]} 47. a5 {[%clk
0:00:10.2]} 47... Ba6 {[%clk 0:00:18.3]} 48. Rc6 {[%clk 0:00:09.9]} 48... Bb5
{[%clk 0:00:17.5]} 49. Rc5 {[%clk 0:00:10]} 49... Bc4 {[%clk 0:00:15.8]} 50. b5
{[%clk 0:00:07.5]} 50... Reg7 {[%clk 0:00:14.7]} 51. b6 {[%clk 0:00:05.2]} 51...
Rg2+ {[%clk 0:00:14.6]} 52. Ke1 {[%clk 0:00:03.7]} 52... Re2+ {[%clk 0:00:14.7]}
53. Kf1 {[%clk 0:00:04.1]} 53... Rc2+ {[%clk 0:00:09.3]} 54. Nxc4 {[%clk
0:00:04.4]} 54... dxc4 {[%clk 0:00:08.2]} 55. b7 {[%clk 0:00:05]} 55... Rgg2
{[%clk 0:00:06.3]} 56. Rd7+ {[%clk 0:00:04.3]} 1-0

[Event "*** SCC Grand Prix: Titled Tuesday Blitz"]
[Site "Chess.com"]
[Date "2020.06.09"]
[Round "9"]
[White "Vision_64"]
[Black "mfwagnerpeixoto"]
[Result "0-1"]
[WhiteElo "2143"]
[BlackElo "2267"]
[TimeControl "180+1"]
[EndTime "10:47:35 PDT"]
[Termination "mfwagnerpeixoto won by resignation"]

1. e4 {[%clk 0:03:00.9]} 1... c5 {[%clk 0:02:59]} 2. Nf3 {[%clk 0:03:00.2]} 2...
Nc6 {[%clk 0:02:59.4]} 3. b4 {[%clk 0:02:59.8]} 3... cxb4 {[%clk 0:02:52.2]} 4.
d4 {[%clk 0:02:59.9]} 4... d5 {[%clk 0:02:48.5]} 5. exd5 {[%clk 0:03:00.8]} 5...
Qxd5 {[%clk 0:02:47.9]} 6. c4 {[%clk 0:03:01.4]} 6... Qe4+ {[%clk 0:02:37.1]} 7.
Be2 {[%clk 0:02:54.5]} 7... Nf6 {[%clk 0:02:27]} 8. O-O {[%clk 0:02:41]} 8... e6
{[%clk 0:02:26.6]} 9. Bd3 {[%clk 0:02:18.8]} 9... Qg4 {[%clk 0:02:20.3]} 10. h3
{[%clk 0:02:17.8]} 10... Qh5 {[%clk 0:02:20.2]} 11. d5 {[%clk 0:01:59.3]} 11...
exd5 {[%clk 0:02:18.3]} 12. Re1+ {[%clk 0:01:58.8]} 12... Be6 {[%clk 0:02:17.9]}
13. Nbd2 {[%clk 0:01:40.2]} 13... Rd8 {[%clk 0:01:56.9]} 14. Qa4 {[%clk
0:01:23.3]} 14... Bc5 {[%clk 0:01:47.2]} 15. cxd5 {[%clk 0:01:18.3]} 15... Qxd5
{[%clk 0:01:28.5]} 16. Bc4 {[%clk 0:01:16.5]} 16... Qd7 {[%clk 0:01:27.4]} 17.
Nb3 {[%clk 0:01:06.3]} 17... Bb6 {[%clk 0:01:18.5]} 18. Bg5 {[%clk 0:00:33]}
18... O-O {[%clk 0:01:16.5]} 19. Bxf6 {[%clk 0:00:30.7]} 19... gxf6 {[%clk
0:01:15.5]} 20. Qb5 {[%clk 0:00:20.5]} 20... Ne5 {[%clk 0:00:46.7]} 21. Nxe5
{[%clk 0:00:19.7]} 21... Qxb5 {[%clk 0:00:44.7]} 22. Bxb5 {[%clk 0:00:19.3]}
22... fxe5 {[%clk 0:00:43.8]} 23. Rxe5 {[%clk 0:00:20.2]} 23... Kh8 {[%clk
0:00:28.4]} 24. Rae1 {[%clk 0:00:19.5]} 24... Bxb3 {[%clk 0:00:21.3]} 25. axb3
{[%clk 0:00:19.1]} 25... Rd2 {[%clk 0:00:20.8]} 26. R1e2 {[%clk 0:00:17.6]}
26... Rfd8 {[%clk 0:00:18.8]} 27. Rxd2 {[%clk 0:00:16.8]} 27... Rxd2 {[%clk
0:00:18.4]} 28. Re2 {[%clk 0:00:17.4]} 28... Rxe2 {[%clk 0:00:17.5]} 29. Bxe2
{[%clk 0:00:17.1]} 29... Kg7 {[%clk 0:00:17.6]} 30. Kf1 {[%clk 0:00:16.2]} 30...
Kf6 {[%clk 0:00:17.4]} 31. Bf3 {[%clk 0:00:16.6]} 31... Bc5 {[%clk 0:00:15.9]}
32. Bxb7 {[%clk 0:00:16.9]} 32... Ke5 {[%clk 0:00:16.5]} 33. Ke2 {[%clk
0:00:16.6]} 33... Kd4 {[%clk 0:00:16.7]} 34. f3 {[%clk 0:00:15]} 34... Kc3
{[%clk 0:00:15.9]} 35. Bd5 {[%clk 0:00:15.2]} 35... f6 {[%clk 0:00:16.1]} 36. g4
{[%clk 0:00:13.1]} 36... Kd4 {[%clk 0:00:15.9]} 37. Bc4 {[%clk 0:00:12.9]} 37...
a5 {[%clk 0:00:15.9]} 38. Kd2 {[%clk 0:00:11.8]} 38... h6 {[%clk 0:00:13.4]} 39.
Bf7 {[%clk 0:00:11.1]} 39... Ke5 {[%clk 0:00:13.3]} 40. Ke2 {[%clk 0:00:09.8]}
40... Kf4 {[%clk 0:00:13.2]} 41. h4 {[%clk 0:00:08.8]} 41... Kg3 {[%clk
0:00:11.6]} 42. g5 {[%clk 0:00:08.1]} 42... fxg5 {[%clk 0:00:09.6]} 43. hxg5
{[%clk 0:00:08.4]} 43... hxg5 {[%clk 0:00:10.5]} 44. Be6 {[%clk 0:00:07.5]}
44... Kf4 {[%clk 0:00:10.3]} 45. Kd3 {[%clk 0:00:07.7]} 45... Kxf3 {[%clk
0:00:09]} 46. Kc4 {[%clk 0:00:06.9]} 46... Bf8 {[%clk 0:00:09]} 47. Kb5 {[%clk
0:00:06.8]} 47... g4 {[%clk 0:00:09.3]} 48. Bd5+ {[%clk 0:00:05.4]} 48... Kf2
{[%clk 0:00:09]} 49. Kxa5 {[%clk 0:00:05.5]} 49... g3 {[%clk 0:00:08.8]} 50. Kb5
{[%clk 0:00:05]} 50... g2 {[%clk 0:00:09]} 51. Bxg2 {[%clk 0:00:04.2]} 51...
Kxg2 {[%clk 0:00:09.9]} 52. Kc4 {[%clk 0:00:04.5]} 52... Kf2 {[%clk 0:00:09.8]}
53. Kd3 {[%clk 0:00:04.3]} 53... Ke1 {[%clk 0:00:09.6]} 54. Kc2 {[%clk
0:00:04.5]} 54... Ke2 {[%clk 0:00:09.6]} 55. Kc1 {[%clk 0:00:03]} 55... Kd3
{[%clk 0:00:09.4]} 56. Kb2 {[%clk 0:00:02.9]} 56... Kd2 {[%clk 0:00:09.1]} 57.
Kb1 {[%clk 0:00:02.7]} 57... Kc3 {[%clk 0:00:09.2]} 58. Ka2 {[%clk 0:00:03.2]}
58... Bc5 {[%clk 0:00:09.3]} 59. Kb1 {[%clk 0:00:02.9]} 59... Kxb3 {[%clk
0:00:09.4]} 60. Kc1 {[%clk 0:00:03.3]} 60... Ka2 {[%clk 0:00:09.5]} 61. Kc2
{[%clk 0:00:03.4]} 61... b3+ {[%clk 0:00:09.8]} 62. Kd3 {[%clk 0:00:04.3]} 62...
b2 {[%clk 0:00:10.1]} 63. Kc4 {[%clk 0:00:05.2]} 63... b1=Q {[%clk 0:00:10.2]}
64. Kxc5 {[%clk 0:00:06.1]} 64... Qe4 {[%clk 0:00:09.7]} 0-1